{"text_format":"3","workbook":"xlsx","n_sheets":2,"sheets":["Pianificazione dipendenti","Impostazione"],"not_rendered":{"defined_names":21},"read":"whole","date_system":"1900"}

{"sheet":"Pianificazione dipendenti","index":0,"n_rows":296,"n_cols":21,"rows_kept":296,"merged":[[6,1,6,9],[66,1,66,9],[126,1,126,9],[186,1,186,9],[246,1,246,9]]}
["Pianificazione dei turni dei dipendenti"]
[]
[null,"TOTALE:",null,{"$f":"SUM(4:4)","v":{"v":56,"d":"56.00"}}]
[null,"ORE:",null,{"$f":"TotaleOreGiornaliereImpiegato","v":8},8,8,8,8,8,8,{"v":0,"d":"0.00"},{"v":0,"d":"0.00"},{"v":0,"d":"0.00"},{"v":0,"d":"0.00"},{"v":0,"d":"0.00"},{"v":0,"d":"0.00"},{"v":0,"d":"0.00"},{"v":0,"d":"0.00"},{"v":0,"d":"0.00"},{"v":0,"d":"0.00"},{"v":0,"d":"0.00"}]
[null,"DIPENDENTE:",null,"Caro, F","Martino, A","Giorgi, A","Martino, A","Guaita, D","Zighetti, B","Tasselli, G"]
[]
[null,"2012-07-16T09:00:00"]
[null,{"$f":"B7","v":41106.375},{"$nulls":5},"Vacanza"]
[null,{"$f":"VisualizzazionePeriodi","v":":15"},null,"Accoglienza",{"$nulls":3},"Vacanza"]
[null,":30",null,"Accoglienza",{"$nulls":3},"Vacanza"]
[null,":45",null,"Accoglienza","Supervisore",null,"Servizio clienti","Vacanza"]
[null,"10:00",null,"Accoglienza","Supervisore",null,"Servizio clienti","Vacanza"]
[null,":15",null,"Accoglienza","Supervisore",null,"Servizio clienti","Vacanza"]
[null,":30",null,"Accoglienza","Supervisore",null,"Servizio clienti","Vacanza","Contabilità"]
[null,":45",null,"Accoglienza","Supervisore",null,"Servizio clienti","Vacanza","Contabilità","Custode"]
[null,"11:00",null,"Accoglienza","Supervisore",null,"Servizio clienti","Vacanza","Contabilità","Custode"]
[null,":15",null,"Accoglienza","Supervisore","Guida","Servizio clienti","Vacanza","Contabilità","Custode"]
[null,":30",null,"Accoglienza","Intervallo","Guida","Servizio clienti","Vacanza","Contabilità","Custode"]
[null,":45",null,"Pranzo","Supervisore","Guida","Servizio clienti","Vacanza","Contabilità","Custode"]
[null,"12:00",null,"Pranzo","Supervisore","Guida","Servizio clienti","Vacanza","Contabilità","Custode"]
[null,":15",null,"Accoglienza","Supervisore","Guida","Servizio clienti","Vacanza","Intervallo","Custode"]
[null,":30",null,"Accoglienza","Supervisore","Intervallo","Servizio clienti","Vacanza","Telefoni","Intervallo"]
[null,":45",null,"Accoglienza","Supervisore","Guida","Servizio clienti","Vacanza","Telefoni","Custode"]
[null,"13:00",null,"Accoglienza","Supervisore","Guida","Servizio clienti","Vacanza","Telefoni","Custode"]
[null,":15",null,"Accoglienza","Supervisore","Guida","Pranzo","Vacanza","Telefoni","Custode"]
[null,":30",null,null,"Supervisore","Guida","Pranzo","Vacanza","Telefoni","Custode"]
[null,":45",null,null,"Supervisore","Guida","Pranzo","Vacanza","Pranzo","Custode"]
[null,"14:00",null,"Cassiere","Pranzo","Guida","Pranzo","Vacanza","Pranzo","Custode"]
[null,":15",null,"Cassiere","Pranzo","Guida","Servizio clienti","Vacanza","Telefoni","Custode"]
[null,":30",null,"Cassiere","Pranzo","Pranzo","Servizio clienti","Vacanza","Telefoni","Pranzo"]
[null,":45",null,"Cassiere","Pranzo","Pranzo","Servizio clienti","Vacanza","Telefoni","Pranzo"]
[null,"15:00",null,"Cassiere","Sicurezza","Pranzo","Servizio clienti","Vacanza","Telefoni","Pranzo"]
[null,":15",null,"Cassiere","Sicurezza","Pranzo","Servizio clienti","Vacanza","Telefoni","Pranzo"]
[null,":30",null,"Cassiere","Sicurezza","Guida","Servizio clienti","Vacanza","Telefoni","Chiuso"]
[null,":45",null,"Cassiere","Sicurezza","Guida","Servizio clienti","Vacanza","Telefoni","Chiuso"]
[null,"16:00",null,"Cassiere","Sicurezza","Guida","Servizio clienti","Vacanza","Intervallo","Chiuso"]
[null,":15",null,"Intervallo","Sicurezza","Guida","Intervallo","Vacanza","Telefoni","Chiuso"]
[null,":30",null,"Cassiere","Sicurezza","Guida","Servizio clienti","Vacanza","Telefoni","Chiuso"]
[null,":45",null,"Cassiere","Sicurezza","Guida","Servizio clienti","Vacanza","Telefoni","Chiuso"]
[null,"17:00",null,"Cassiere","Sicurezza","Guida","Servizio clienti",null,"Telefoni","Chiuso"]
[null,":15",null,"Cassiere","Sicurezza","Guida","Servizio clienti",null,"Telefoni","Chiuso"]
[null,":30",null,"Cassiere","Sicurezza","Guida","Servizio clienti",null,"Telefoni","Chiuso"]
[null,":45",null,"Cassiere","Sicurezza","Guida","Servizio clienti",null,"Telefoni","Chiuso"]
[null,"18:00",null,"Cassiere","Sicurezza","Guida","Servizio clienti",null,"Telefoni","Chiuso"]
[null,":15",null,"Cassiere","Sicurezza","Guida","Servizio clienti",null,"Telefoni","Chiuso"]
[null,":30",null,null,"Sicurezza","Guida","Servizio clienti",null,"Telefoni","Chiuso"]
[null,":45",null,null,"Sicurezza","Intervallo","Servizio clienti",null,"Telefoni","Intervallo"]
[null,"19:00",{"$nulls":3},"Guida",null,null,"Telefoni","Chiuso"]
[null,":15",{"$nulls":3},"Guida",null,null,"Telefoni","Chiuso"]
[null,":30",{"$nulls":3},"Guida",{"$nulls":3},"Chiuso"]
[null,":45",{"$nulls":3},"Guida",{"$nulls":3},"Chiuso"]
[null,"20:00",{"$nulls":3},"Guida",{"$nulls":3},"Chiuso"]
[null,":15",{"$nulls":3},"Guida"]
[null,":30",{"$nulls":3},"Guida"]
[null,":45"]
[null,"21:00"]
[]
[]
[]
[]
["Pianificazione dipendenti"]
[]
[null,"TOTALE:",null,{"$f":"SUM(64:64)","v":{"v":56,"d":"56.00"}}]
[null,"ORE:",null,{"$f":"TotaleOreGiornaliereImpiegato","v":8},8,8,8,8,8,8,{"v":0,"d":"0.00"},{"v":0,"d":"0.00"},{"v":0,"d":"0.00"},{"v":0,"d":"0.00"},{"v":0,"d":"0.00"},{"v":0,"d":"0.00"},{"v":0,"d":"0.00"},{"v":0,"d":"0.00"},{"v":0,"d":"0.00"},{"v":0,"d":"0.00"},{"v":0,"d":"0.00"}]
[null,"DIPENDENTE:",null,"Caro, F","Martino, A","Giorgi, A","Vitale, C","Guaita, D","Zighetti, B","Tasselli, G"]
[]
[null,{"$f":"B7+1","v":"2012-07-17T09:00:00"}]
[null,{"$f":"B67","v":41107.375},{"$nulls":5},"Vacanza"]
[null,{"$f":"VisualizzazionePeriodi","v":":15"},null,"Accoglienza",{"$nulls":3},"Vacanza"]
[null,":30",null,"Accoglienza",{"$nulls":3},"Vacanza"]
[null,":45",null,"Accoglienza","Supervisore",null,"Servizio clienti","Vacanza"]
[null,"1:00",null,"Accoglienza","Supervisore",null,"Servizio clienti","Vacanza"]
[null,":15",null,"Accoglienza","Supervisore",null,"Servizio clienti","Vacanza"]
[null,":30",null,"Accoglienza","Supervisore",null,"Servizio clienti","Vacanza","Contabilità"]
[null,":45",null,"Accoglienza","Supervisore",null,"Servizio clienti","Vacanza","Contabilità","Custode"]
[null,"2:00",null,"Accoglienza","Supervisore",null,"Servizio clienti","Vacanza","Contabilità","Custode"]
[null,":15",null,"Accoglienza","Supervisore","Guida","Servizio clienti","Vacanza","Contabilità","Custode"]
[null,":30",null,"Accoglienza","Intervallo","Guida","Servizio clienti","Vacanza","Contabilità","Custode"]
[null,":45",null,"Pranzo","Supervisore","Guida","Servizio clienti","Vacanza","Contabilità","Custode"]
[null,"3:00",null,"Pranzo","Supervisore","Guida","Servizio clienti","Vacanza","Contabilità","Custode"]
[null,":15",null,"Accoglienza","Supervisore","Guida","Servizio clienti","Vacanza","Intervallo","Custode"]
[null,":30",null,"Accoglienza","Supervisore","Intervallo","Servizio clienti","Vacanza","Telefoni","Intervallo"]
[null,":45",null,"Accoglienza","Supervisore","Guida","Servizio clienti","Vacanza","Telefoni","Custode"]
[null,"4:00",null,"Accoglienza","Supervisore","Guida","Servizio clienti","Vacanza","Telefoni","Custode"]
[null,":15",null,"Accoglienza","Supervisore","Guida","Pranzo","Vacanza","Telefoni","Custode"]
[null,":30",null,null,"Supervisore","Guida","Pranzo","Vacanza","Telefoni","Custode"]
[null,":45",null,null,"Supervisore","Guida","Pranzo","Vacanza","Pranzo","Custode"]
[null,"5:00",null,"Cassiere","Pranzo","Guida","Pranzo","Vacanza","Pranzo","Custode"]
[null,":15",null,"Cassiere","Pranzo","Guida","Servizio clienti","Vacanza","Telefoni","Custode"]
[null,":30",null,"Cassiere","Pranzo","Pranzo","Servizio clienti","Vacanza","Telefoni","Pranzo"]
[null,":45",null,"Cassiere","Pranzo","Pranzo","Servizio clienti","Vacanza","Telefoni","Pranzo"]
[null,"6:00",null,"Cassiere","Sicurezza","Pranzo","Servizio clienti","Vacanza","Telefoni","Pranzo"]
[null,":15",null,"Cassiere","Sicurezza","Pranzo","Servizio clienti","Vacanza","Telefoni","Pranzo"]
[null,":30",null,"Cassiere","Sicurezza","Guida","Servizio clienti","Vacanza","Telefoni","Chiuso"]
[null,":45",null,"Cassiere","Sicurezza","Guida","Servizio clienti","Vacanza","Telefoni","Chiuso"]
[null,"7:00",null,"Cassiere","Sicurezza","Guida","Servizio clienti","Vacanza","Intervallo","Chiuso"]
[null,":15",null,"Intervallo","Sicurezza","Guida","Intervallo","Vacanza","Telefoni","Chiuso"]
[null,":30",null,"Cassiere","Sicurezza","Guida","Servizio clienti","Vacanza","Telefoni","Chiuso"]
[null,":45",null,"Cassiere","Sicurezza","Guida","Servizio clienti","Vacanza","Telefoni","Chiuso"]
[null,"8:00",null,"Cassiere","Sicurezza","Guida","Servizio clienti",null,"Telefoni","Chiuso"]
[null,":15",null,"Cassiere","Sicurezza","Guida","Servizio clienti",null,"Telefoni","Chiuso"]
[null,":30",null,"Cassiere","Sicurezza","Guida","Servizio clienti",null,"Telefoni","Chiuso"]
[null,":45",null,"Cassiere","Sicurezza","Guida","Servizio clienti",null,"Telefoni","Chiuso"]
[null,"9:00",null,"Cassiere","Sicurezza","Guida","Servizio clienti",null,"Telefoni","Chiuso"]
[null,":15",null,"Cassiere","Sicurezza","Guida","Servizio clienti",null,"Telefoni","Chiuso"]
[null,":30",null,null,"Sicurezza","Guida","Servizio clienti",null,"Telefoni","Chiuso"]
[null,":45",null,null,"Sicurezza","Intervallo","Servizio clienti",null,"Telefoni","Intervallo"]
[null,"10:00",{"$nulls":3},"Guida",null,null,"Telefoni","Chiuso"]
[null,":15",{"$nulls":3},"Guida",null,null,"Telefoni","Chiuso"]
[null,":30",{"$nulls":3},"Guida",{"$nulls":3},"Chiuso"]
[null,":45",{"$nulls":3},"Guida",{"$nulls":3},"Chiuso"]
[null,"11:00",{"$nulls":3},"Guida",{"$nulls":3},"Chiuso"]
[null,":15",{"$nulls":3},"Guida"]
[null,":30",{"$nulls":3},"Guida"]
[null,":45"]
[null,"12:00"]
[]
[]
[]
[]
["Pianificazione dipendenti"]
[]
[null,"TOTALE:",null,{"$f":"SUM(124:124)","v":{"v":56,"d":"56.00"}}]
[null,"ORE:",null,{"$f":"TotaleOreGiornaliereImpiegato","v":8},8,8,8,8,8,8,{"v":0,"d":"0.00"},{"v":0,"d":"0.00"},{"v":0,"d":"0.00"},{"v":0,"d":"0.00"},{"v":0,"d":"0.00"},{"v":0,"d":"0.00"},{"v":0,"d":"0.00"},{"v":0,"d":"0.00"},{"v":0,"d":"0.00"},{"v":0,"d":"0.00"},{"v":0,"d":"0.00"}]
[null,"DIPENDENTE:",null,"Caro, F","Martino, A","Giorgi, A","Vitale, C","Guaita, D","Zighetti, B","Tasselli, G"]
[]
[null,{"$f":"B67+1","v":"2012-07-18T09:00:00"}]
[null,{"$f":"B127","v":41108.375},{"$nulls":5},"Vacanza"]
[null,{"$f":"VisualizzazionePeriodi","v":":15"},null,"Accoglienza",{"$nulls":3},"Vacanza"]
[null,":30",null,"Accoglienza",{"$nulls":3},"Vacanza"]
[null,":45",null,"Accoglienza","Supervisore",null,"Servizio clienti","Vacanza"]
[null,"16:00",null,"Accoglienza","Supervisore",null,"Servizio clienti","Vacanza"]
[null,":15",null,"Accoglienza","Supervisore",null,"Servizio clienti","Vacanza"]
[null,":30",null,"Accoglienza","Supervisore",null,"Servizio clienti","Vacanza","Contabilità"]
[null,":45",null,"Accoglienza","Supervisore",null,"Servizio clienti","Vacanza","Contabilità","Custode"]
[null,"17:00",null,"Accoglienza","Supervisore",null,"Servizio clienti","Vacanza","Contabilità","Custode"]
[null,":15",null,"Accoglienza","Supervisore","Guida","Servizio clienti","Vacanza","Contabilità","Custode"]
[null,":30",null,"Accoglienza","Intervallo","Guida","Servizio clienti","Vacanza","Contabilità","Custode"]
[null,":45",null,"Pranzo","Supervisore","Guida","Servizio clienti","Vacanza","Contabilità","Custode"]
[null,"18:00",null,"Pranzo","Supervisore","Guida","Servizio clienti","Vacanza","Contabilità","Custode"]
[null,":15",null,"Accoglienza","Supervisore","Guida","Servizio clienti","Vacanza","Intervallo","Custode"]
[null,":30",null,"Accoglienza","Supervisore","Intervallo","Servizio clienti","Vacanza","Telefoni","Intervallo"]
[null,":45",null,"Accoglienza","Supervisore","Guida","Servizio clienti","Vacanza","Telefoni","Custode"]
[null,"19:00",null,"Accoglienza","Supervisore","Guida","Servizio clienti","Vacanza","Telefoni","Custode"]
[null,":15",null,"Accoglienza","Supervisore","Guida","Pranzo","Vacanza","Telefoni","Custode"]
[null,":30",null,null,"Supervisore","Guida","Pranzo","Vacanza","Telefoni","Custode"]
[null,":45",null,null,"Supervisore","Guida","Pranzo","Vacanza","Pranzo","Custode"]
[null,"20:00",null,"Cassiere","Pranzo","Guida","Pranzo","Vacanza","Pranzo","Custode"]
[null,":15",null,"Cassiere","Pranzo","Guida","Servizio clienti","Vacanza","Telefoni","Custode"]
[null,":30",null,"Cassiere","Pranzo","Pranzo","Servizio clienti","Vacanza","Telefoni","Pranzo"]
[null,":45",null,"Cassiere","Pranzo","Pranzo","Servizio clienti","Vacanza","Telefoni","Pranzo"]
[null,"21:00",null,"Cassiere","Sicurezza","Pranzo","Servizio clienti","Vacanza","Telefoni","Pranzo"]
[null,":15",null,"Cassiere","Sicurezza","Pranzo","Servizio clienti","Vacanza","Telefoni","Pranzo"]
[null,":30",null,"Cassiere","Sicurezza","Guida","Servizio clienti","Vacanza","Telefoni","Chiuso"]
[null,":45",null,"Cassiere","Sicurezza","Guida","Servizio clienti","Vacanza","Telefoni","Chiuso"]
[null,"22:00",null,"Cassiere","Sicurezza","Guida","Servizio clienti","Vacanza","Intervallo","Chiuso"]
[null,":15",null,"Intervallo","Sicurezza","Guida","Intervallo","Vacanza","Telefoni","Chiuso"]
[null,":30",null,"Cassiere","Sicurezza","Guida","Servizio clienti","Vacanza","Telefoni","Chiuso"]
[null,":45",null,"Cassiere","Sicurezza","Guida","Servizio clienti","Vacanza","Telefoni","Chiuso"]
[null,"23:00",null,"Cassiere","Sicurezza","Guida","Servizio clienti",null,"Telefoni","Chiuso"]
[null,":15",null,"Cassiere","Sicurezza","Guida","Servizio clienti",null,"Telefoni","Chiuso"]
[null,":30",null,"Cassiere","Sicurezza","Guida","Servizio clienti",null,"Telefoni","Chiuso"]
[null,":45",null,"Cassiere","Sicurezza","Guida","Servizio clienti",null,"Telefoni","Chiuso"]
[null,"0:00",null,"Cassiere","Sicurezza","Guida","Servizio clienti",null,"Telefoni","Chiuso"]
[null,":15",null,"Cassiere","Sicurezza","Guida","Servizio clienti",null,"Telefoni","Chiuso"]
[null,":30",null,null,"Sicurezza","Guida","Servizio clienti",null,"Telefoni","Chiuso"]
[null,":45",null,null,"Sicurezza","Intervallo","Servizio clienti",null,"Telefoni","Intervallo"]
[null,"1:00",{"$nulls":3},"Guida",null,null,"Telefoni","Chiuso"]
[null,":15",{"$nulls":3},"Guida",null,null,"Telefoni","Chiuso"]
[null,":30",{"$nulls":3},"Guida",{"$nulls":3},"Chiuso"]
[null,":45",{"$nulls":3},"Guida",{"$nulls":3},"Chiuso"]
[null,"2:00",{"$nulls":3},"Guida",{"$nulls":3},"Chiuso"]
[null,":15",{"$nulls":3},"Guida"]
[null,":30",{"$nulls":3},"Guida"]
[null,":45"]
[null,"3:00"]
[]
[]
[]
[]
["Pianificazione dipendenti"]
[]
[null,"TOTALE:",null,{"$f":"SUM(184:184)","v":{"v":56,"d":"56.00"}}]
[null,"ORE:",null,{"$f":"TotaleOreGiornaliereImpiegato","v":8},8,8,8,8,8,8,{"v":0,"d":"0.00"},{"v":0,"d":"0.00"},{"v":0,"d":"0.00"},{"v":0,"d":"0.00"},{"v":0,"d":"0.00"},{"v":0,"d":"0.00"},{"v":0,"d":"0.00"},{"v":0,"d":"0.00"},{"v":0,"d":"0.00"},{"v":0,"d":"0.00"},{"v":0,"d":"0.00"}]
[null,"DIPENDENTE:",null,"Caro, F","Martino, A","Giorgi, A","Vitale, C","Guaita, D","Zighetti, B","Tasselli, G"]
[]
[null,{"$f":"B127+1","v":"2012-07-19T09:00:00"}]
[null,{"$f":"B187","v":41109.375},{"$nulls":5},"Vacanza"]
[null,{"$f":"VisualizzazionePeriodi","v":":15"},null,"Accoglienza",{"$nulls":3},"Vacanza"]
[null,":30",null,"Accoglienza",{"$nulls":3},"Vacanza"]
[null,":45",null,"Accoglienza","Supervisore",null,"Servizio clienti","Vacanza"]
[null,"7:00",null,"Accoglienza","Supervisore",null,"Servizio clienti","Vacanza"]
[null,":15",null,"Accoglienza","Supervisore",null,"Servizio clienti","Vacanza"]
[null,":30",null,"Accoglienza","Supervisore",null,"Servizio clienti","Vacanza","Contabilità"]
[null,":45",null,"Accoglienza","Supervisore",null,"Servizio clienti","Vacanza","Contabilità","Custode"]
[null,"8:00",null,"Accoglienza","Supervisore",null,"Servizio clienti","Vacanza","Contabilità","Custode"]
[null,":15",null,"Accoglienza","Supervisore","Guida","Servizio clienti","Vacanza","Contabilità","Custode"]
[null,":30",null,"Accoglienza","Intervallo","Guida","Servizio clienti","Vacanza","Contabilità","Custode"]
[null,":45",null,"Pranzo","Supervisore","Guida","Servizio clienti","Vacanza","Contabilità","Custode"]
[null,"9:00",null,"Pranzo","Supervisore","Guida","Servizio clienti","Vacanza","Contabilità","Custode"]
[null,":15",null,"Accoglienza","Supervisore","Guida","Servizio clienti","Vacanza","Intervallo","Custode"]
[null,":30",null,"Accoglienza","Supervisore","Intervallo","Servizio clienti","Vacanza","Telefoni","Intervallo"]
[null,":45",null,"Accoglienza","Supervisore","Guida","Servizio clienti","Vacanza","Telefoni","Custode"]
[null,"10:00",null,"Accoglienza","Supervisore","Guida","Servizio clienti","Vacanza","Telefoni","Custode"]
[null,":15",null,"Accoglienza","Supervisore","Guida","Pranzo","Vacanza","Telefoni","Custode"]
[null,":30",null,null,"Supervisore","Guida","Pranzo","Vacanza","Telefoni","Custode"]
[null,":45",null,null,"Supervisore","Guida","Pranzo","Vacanza","Pranzo","Custode"]
[null,"11:00",null,"Cassiere","Pranzo","Guida","Pranzo","Vacanza","Pranzo","Custode"]
[null,":15",null,"Cassiere","Pranzo","Guida","Servizio clienti","Vacanza","Telefoni","Custode"]
[null,":30",null,"Cassiere","Pranzo","Pranzo","Servizio clienti","Vacanza","Telefoni","Pranzo"]
[null,":45",null,"Cassiere","Pranzo","Pranzo","Servizio clienti","Vacanza","Telefoni","Pranzo"]
[null,"12:00",null,"Cassiere","Sicurezza","Pranzo","Servizio clienti","Vacanza","Telefoni","Pranzo"]
[null,":15",null,"Cassiere","Sicurezza","Pranzo","Servizio clienti","Vacanza","Telefoni","Pranzo"]
[null,":30",null,"Cassiere","Sicurezza","Guida","Servizio clienti","Vacanza","Telefoni","Chiuso"]
[null,":45",null,"Cassiere","Sicurezza","Guida","Servizio clienti","Vacanza","Telefoni","Chiuso"]
[null,"13:00",null,"Cassiere","Sicurezza","Guida","Servizio clienti","Vacanza","Intervallo","Chiuso"]
[null,":15",null,"Intervallo","Sicurezza","Guida","Intervallo","Vacanza","Telefoni","Chiuso"]
[null,":30",null,"Cassiere","Sicurezza","Guida","Servizio clienti","Vacanza","Telefoni","Chiuso"]
[null,":45",null,"Cassiere","Sicurezza","Guida","Servizio clienti","Vacanza","Telefoni","Chiuso"]
[null,"14:00",null,"Cassiere","Sicurezza","Guida","Servizio clienti",null,"Telefoni","Chiuso"]
[null,":15",null,"Cassiere","Sicurezza","Guida","Servizio clienti",null,"Telefoni","Chiuso"]
[null,":30",null,"Cassiere","Sicurezza","Guida","Servizio clienti",null,"Telefoni","Chiuso"]
[null,":45",null,"Cassiere","Sicurezza","Guida","Servizio clienti",null,"Telefoni","Chiuso"]
[null,"15:00",null,"Cassiere","Sicurezza","Guida","Servizio clienti",null,"Telefoni","Chiuso"]
[null,":15",null,"Cassiere","Sicurezza","Guida","Servizio clienti",null,"Telefoni","Chiuso"]
[null,":30",null,null,"Sicurezza","Guida","Servizio clienti",null,"Telefoni","Chiuso"]
[null,":45",null,null,"Sicurezza","Intervallo","Servizio clienti",null,"Telefoni","Intervallo"]
[null,"16:00",{"$nulls":3},"Guida",null,null,"Telefoni","Chiuso"]
[null,":15",{"$nulls":3},"Guida",null,null,"Telefoni","Chiuso"]
[null,":30",{"$nulls":3},"Guida",{"$nulls":3},"Chiuso"]
[null,":45",{"$nulls":3},"Guida",{"$nulls":3},"Chiuso"]
[null,"17:00",{"$nulls":3},"Guida",{"$nulls":3},"Chiuso"]
[null,":15",{"$nulls":3},"Guida"]
[null,":30",{"$nulls":3},"Guida"]
[null,":45"]
[null,"18:00"]
[]
[]
[]
[]
["Pianificazione dipendenti"]
[]
[null,"TOTALE:",null,{"$f":"SUM(244:244)","v":{"v":56,"d":"56.00"}}]
[null,"ORE:",null,{"$f":"TotaleOreGiornaliereImpiegato","v":8},8,8,8,8,8,8,{"v":0,"d":"0.00"},{"v":0,"d":"0.00"},{"v":0,"d":"0.00"},{"v":0,"d":"0.00"},{"v":0,"d":"0.00"},{"v":0,"d":"0.00"},{"v":0,"d":"0.00"},{"v":0,"d":"0.00"},{"v":0,"d":"0.00"},{"v":0,"d":"0.00"},{"v":0,"d":"0.00"}]
[null,"DIPENDENTE:",null,"Caro, F","Martino, A","Giorgi, A","Vitale, C","Guaita, D","Zighetti, B","Tasselli, G"]
[]
[null,{"$f":"B187+1","v":"2012-07-20T09:00:00"}]
[null,{"$f":"B247","v":41110.375},{"$nulls":5},"Vacanza"]
[null,{"$f":"VisualizzazionePeriodi","v":":15"},null,"Accoglienza",{"$nulls":3},"Vacanza"]
[null,":30",null,"Accoglienza",{"$nulls":3},"Vacanza"]
[null,":45",null,"Accoglienza","Supervisore",null,"Servizio clienti","Vacanza"]
[null,"22:00",null,"Accoglienza","Supervisore",null,"Servizio clienti","Vacanza"]
[null,":15",null,"Accoglienza","Supervisore",null,"Servizio clienti","Vacanza"]
[null,":30",null,"Accoglienza","Supervisore",null,"Servizio clienti","Vacanza","Contabilità"]
[null,":45",null,"Accoglienza","Supervisore",null,"Servizio clienti","Vacanza","Contabilità","Custode"]
[null,"23:00",null,"Accoglienza","Supervisore",null,"Servizio clienti","Vacanza","Contabilità","Custode"]
[null,":15",null,"Accoglienza","Supervisore","Guida","Servizio clienti","Vacanza","Contabilità","Custode"]
[null,":30",null,"Accoglienza","Intervallo","Guida","Servizio clienti","Vacanza","Contabilità","Custode"]
[null,":45",null,"Pranzo","Supervisore","Guida","Servizio clienti","Vacanza","Contabilità","Custode"]
[null,"0:00",null,"Pranzo","Supervisore","Guida","Servizio clienti","Vacanza","Contabilità","Custode"]
[null,":15",null,"Accoglienza","Supervisore","Guida","Servizio clienti","Vacanza","Intervallo","Custode"]
[null,":30",null,"Accoglienza","Supervisore","Intervallo","Servizio clienti","Vacanza","Telefoni","Intervallo"]
[null,":45",null,"Accoglienza","Supervisore","Guida","Servizio clienti","Vacanza","Telefoni","Custode"]
[null,"1:00",null,"Accoglienza","Supervisore","Guida","Servizio clienti","Vacanza","Telefoni","Custode"]
[null,":15",null,"Accoglienza","Supervisore","Guida","Pranzo","Vacanza","Telefoni","Custode"]
[null,":30",null,null,"Supervisore","Guida","Pranzo","Vacanza","Telefoni","Custode"]
[null,":45",null,null,"Supervisore","Guida","Pranzo","Vacanza","Pranzo","Custode"]
[null,"2:00",null,"Cassiere","Pranzo","Guida","Pranzo","Vacanza","Pranzo","Custode"]
[null,":15",null,"Cassiere","Pranzo","Guida","Servizio clienti","Vacanza","Telefoni","Custode"]
[null,":30",null,"Cassiere","Pranzo","Pranzo","Servizio clienti","Vacanza","Telefoni","Pranzo"]
[null,":45",null,"Cassiere","Pranzo","Pranzo","Servizio clienti","Vacanza","Telefoni","Pranzo"]
[null,"3:00",null,"Cassiere","Sicurezza","Pranzo","Servizio clienti","Vacanza","Telefoni","Pranzo"]
[null,":15",null,"Cassiere","Sicurezza","Pranzo","Servizio clienti","Vacanza","Telefoni","Pranzo"]
[null,":30",null,"Cassiere","Sicurezza","Guida","Servizio clienti","Vacanza","Telefoni","Chiuso"]
[null,":45",null,"Cassiere","Sicurezza","Guida","Servizio clienti","Vacanza","Telefoni","Chiuso"]
[null,"4:00",null,"Cassiere","Sicurezza","Guida","Servizio clienti","Vacanza","Intervallo","Chiuso"]
[null,":15",null,"Intervallo","Sicurezza","Guida","Intervallo","Vacanza","Telefoni","Chiuso"]
[null,":30",null,"Cassiere","Sicurezza","Guida","Servizio clienti","Vacanza","Telefoni","Chiuso"]
[null,":45",null,"Cassiere","Sicurezza","Guida","Servizio clienti","Vacanza","Telefoni","Chiuso"]
[null,"5:00",null,"Cassiere","Sicurezza","Guida","Servizio clienti",null,"Telefoni","Chiuso"]
[null,":15",null,"Cassiere","Sicurezza","Guida","Servizio clienti",null,"Telefoni","Chiuso"]
[null,":30",null,"Cassiere","Sicurezza","Guida","Servizio clienti",null,"Telefoni","Chiuso"]
[null,":45",null,"Cassiere","Sicurezza","Guida","Servizio clienti",null,"Telefoni","Chiuso"]
[null,"6:00",null,"Cassiere","Sicurezza","Guida","Servizio clienti",null,"Telefoni","Chiuso"]
[null,":15",null,"Cassiere","Sicurezza","Guida","Servizio clienti",null,"Telefoni","Chiuso"]
[null,":30",null,null,"Sicurezza","Guida","Servizio clienti",null,"Telefoni","Chiuso"]
[null,":45",null,null,"Sicurezza","Intervallo","Servizio clienti",null,"Telefoni","Intervallo"]
[null,"7:00",{"$nulls":3},"Guida",null,null,"Telefoni","Chiuso"]
[null,":15",{"$nulls":3},"Guida",null,null,"Telefoni","Chiuso"]
[null,":30",{"$nulls":3},"Guida",{"$nulls":3},"Chiuso"]
[null,":45",{"$nulls":3},"Guida",{"$nulls":3},"Chiuso"]
[null,"8:00",{"$nulls":3},"Guida",{"$nulls":3},"Chiuso"]
[null,":15",{"$nulls":3},"Guida"]
[null,":30",{"$nulls":3},"Guida"]
[null,":45"]
[null,"9:00"]

{"sheet":"Impostazione","index":1,"n_rows":26,"n_cols":7,"rows_kept":26}
[null,"Impostazione"]
[]
[]
[null,"IMMISSIONE INCREMENTI\nPER ORA",4]
[]
[]
[]
[]
[]
[null,"Dipendenti",null,"Posizione/Tempi di assenza","Colore","Pagato","Giorno intero"]
[null,"Caro, F",null,"Pranzo",1,false,false]
[null,"Guaita, D",null,"Intervallo",1,false,false]
[null,"Zighetti, B",null,"Assente",1,false,true]
[null,"Bedogni, S",null,"Ammalato",1,false,true]
[null,"Martino, A",null,"Giorno di permesso",1,true,true]
[null,"Vitale, C",null,"Vacanza",1,true,true]
[null,"Tasselli, G",null,"Accoglienza",2,true,false]
[null,"Giorgi, A",null,"Cassiere",3,true,false]
[{"$nulls":3},"Supervisore",4,true,false]
[{"$nulls":3},"Guida",5,true,false]
[{"$nulls":3},"Servizio clienti",6,true,false]
[{"$nulls":3},"Telefoni",7,true,false]
[{"$nulls":3},"Sicurezza",8,true,false]
[{"$nulls":3},"Custode",9,true,false]
[{"$nulls":3},"Contabilità",10,true,false]
[{"$nulls":3},"Chiuso",11,true,false]